[Event "XIV American Continental-ch 2019"]
[Site "Sao Paulo"]
[Date "2019.07.10"]
[Round "8.20"]
[White "Matsuura, Everaldo"]
[Black "Cadilhac, Igor Tokuichi Kikuch"]
[Result "0-1"]
[ECO "E54"]
[WhiteElo "2459"]
[BlackElo "2291"]
[Annotator "ChessBase"]
[PlyCount "74"]
[EventDate "2019.07.05"]
[EventType "swiss"]
[EventCountry "BRA"]
[SourceTitle "playchess.com"]
[Source "ChessBase"]
[SourceQuality "1"]
[TimeControl "40/5400+30:1800+30"]

1. d4 {[%emt 0:00:03]} Nf6 {[%emt 0:00:00]} 2. c4 {[%emt 0:00:08]} e6 {[%emt 0:00:00]} 3. Nc3 {[%emt 0:00:10]} Bb4 {[%emt 0:00:51]} 4. e3 {[%emt 0:00:10]} O-O {[%emt 0:00:11]} 5. Bd3 {[%emt 0:01:23]} d5 {[%emt 0:01:32]} 6. Nf3 {[%emt 0:00:16]} dxc4 {[%emt 0:01:47]} 7. Bxc4 {[%emt 0:00:11]} c5 {[%emt 0:00:04]} 8. O-O {[%emt 0:00:23]} cxd4 {[%emt 0:00:10]} 9. exd4 {[%emt 0:00:08]} Nc6 {[%emt 0:01:44]} 10. Bg5 {[%emt 0:00:24]} Be7 {[%emt 0:01:13]} 11. Re1 {[%emt 0:02:04]} b6 {[%emt 0:07:43]} 12. a3 {[%emt 0:03:53]} Bb7 {[%emt 0:01:36]} 13. Ba2 {[%emt 0:01:59]} Nd5 {[%emt 0:08:59]} 14. Bxd5 {[%emt 0:04:53]} Bxg5 {[%emt 0:00:11]} 15. Be4 {[%emt 0:00:21]} Bf6 {[%emt 0:01:52]} 16. Qd3 {[%emt 0:10:59]} g6 {[%emt 0:01:21]} 17. Rad1 {[%emt 0:03:36]} Qb8 {[%emt 0:04:19]} 18. d5 {[%emt 0:03:15]} exd5 {[%emt 0:00:18]} 19. Bxd5 {[%emt 0:04:06]} Ne7 {[%emt 0:07:53]} 20. Bxb7 {[%emt 0:23:23]} Qxb7 {[%emt 0:00:09]} 21. Ne4 {[%emt 0:00:37]} Bg7 {[%emt 0:25:50]} 22. Nd6 {[%emt 0:03:06]} Qc7 {[%emt 0:01:48]} 23. Ng5 {[%emt 0:17:52]} Rad8 {[%emt 0:09:49]} 24. Qh3 {[%emt 0:00:30]} h6 {[%emt 0:00:21]} 25. Ngxf7 {[%emt 0:00:33]} Rxf7 {[%emt 0:00:18]} 26. Nxf7 {[%emt 0:01:09]} Kxf7 {[%emt 0:02:10]} 27. Qe6+ {[%emt 0:09:05]} Kf8 {[%emt 0:00:21]} 28. h4 {[%emt 0:01:18]} Rxd1 {[%emt 0:09:31]} 29. Rxd1 {[%emt 0:00:12]} Bxb2 {[%emt 0:00:08]} 30. Re1 {[%emt 0:06:28]} Bxa3 {[%emt 0:04:49]} 31. Qe3 {[%emt 0:00:39]} Bd6 {[%emt 0:02:14]} 32. Qxh6+ {[%emt 0:00:06]} Kg8 {[%emt 0:00:01]} 33. Rc1 {[%emt 0:01:27]} Bh2+ {[%emt 0:01:32]} 34. Kh1 {[%emt 0:00:34]} Qf4 {[%emt 0:00:10]} 35. Rc8+ {[%emt 0:01:10]} Nxc8 {[%emt 0:00:08]} 36. Qxg6+ {[%emt 0:00:05]} Kf8 {[%emt 0:00:27]} 37. Qc6 {[%emt 0:01:18]} Ne7 {[%emt 0:02:32]} 0-1

[Event "XIV American Continental-ch 2019"]
[Site "Sao Paulo"]
[Date "2019.07.10"]
[Round "8.22"]
[White "Bittencourt, Jorge"]
[Black "Martins, Carlos"]
[Result "1/2-1/2"]
[ECO "E18"]
[WhiteElo "2433"]
[BlackElo "2238"]
[Annotator "RC"]
[PlyCount "63"]
[EventDate "2019.07.05"]
[EventType "swiss"]
[EventCountry "BRA"]
[TimeControl "40/5400+30:1800+30"]

1. Nf3 {[%emt 0:00:00]} Nf6 {[%emt 0:06:02]} 2. c4 {[%emt 0:02:22]} e6 {[%emt 0:02:36]} 3. g3 {[%emt 0:00:56]} b6 {[%emt 0:01:02]} 4. Bg2 {[%emt 0:01:01]} Bb7 {[%emt 0:00:03]} 5. O-O {[%emt 0:00:09]} Be7 {[%emt 0:01:01]} 6. d4 {[%emt 0:03:24]} O-O {[%emt 0:00:08]} 7. Nc3 {[%emt 0:03:22]} Ne4 {[%emt 0:01:05]} 8. Bd2 {[%emt 0:00:14]} f5 {[%emt 0:01:00]} 9. d5 {[%emt 0:07:03]} Bf6 {[%emt 0:08:50]} 10. Rc1 {[%emt 0:05:07]} Na6 {[%emt 0:16:34]} 11. Be1 {[%emt 0:18:23]} Nac5 {[%emt 0:09:05]} 12. Nd4 {[%emt 0:06:06]} Nxc3 {[%emt 0:12:22]} 13. Bxc3 {[%emt 0:00:10]} a5 {[%emt 0:01:50]} 14. dxe6 {[%emt 0:14:56]} Bxg2 {[%emt 0:02:29]} 15. e7 {[%emt 0:01:06]} Qxe7 {[%emt 0:00:22]} 16. Kxg2 {[%emt 0:00:16]} g6 {[%emt 0:06:25]} 17. e3 {[%emt 0:06:47]} d6 {[%emt 0:02:22]} 18. Nb5 {[%emt 0:02:11]} Bxc3 {[%emt 0:00:47]} 19. Nxc3 {[%emt 0:00:24]} Qf7 {[%emt 0:03:55]} 20. b3 {[%emt 0:01:04]} Rae8 {[%emt 0:01:04]} 21. Qd5 {[%emt 0:05:01]} Re5 {[%emt 0:04:35]} 22. Qxf7+ {[%emt 0:00:38]} Kxf7 {[%emt 0:00:31]} 23. Nd5 {[%emt 0:01:07]} Rc8 {[%emt 0:00:20]} 24. Rfd1 {[%emt 0:00:32]} h5 {[%emt 0:02:24]} 25. h4 {[%emt 0:00:35]} Ke6 {[%emt 0:05:34]} 26. Kf1 {[%emt 0:05:04]} Kd7 {[%emt 0:00:27]} 27. Ke2 {[%emt 0:01:06]} Re6 {[%emt 0:00:37]} 28. f3 {[%emt 0:02:25]} Rb8 {[%emt 0:01:56]} 29. Nf4 {[%emt 0:02:35]} Rf6 {[%emt 0:00:03]} 30. Nd5 {[%emt 0:00:10]} Re6 {[%emt 0:00:02]} 31. Nf4 {[%emt 0:03:14]} Rf6 {[%emt 0:00:02]} 32. Nd5 1/2-1/2

[Event "XIV American Continental-ch 2019"]
[Site "Sao Paulo"]
[Date "2019.07.10"]
[Round "8.24"]
[White "Fernandez, Maria Florencia"]
[Black "Sarkar, Justin"]
[Result "0-1"]
[ECO "D20"]
[WhiteElo "2220"]
[BlackElo "2389"]
[Annotator "RC"]
[PlyCount "58"]
[EventDate "2019.07.05"]
[EventType "swiss"]
[EventCountry "BRA"]
[TimeControl "40/5400+30:1800+30"]

1. d4 {[%emt 0:03:27]} d5 {[%emt 0:02:34]} 2. c4 {[%emt 0:00:11]} dxc4 {[%emt 0:00:15]} 3. e4 {[%emt 0:00:16]} e5 {[%emt 0:00:30]} 4. d5 {[%emt 0:03:41]} Nf6 {[%emt 0:00:49]} 5. Nc3 {[%emt 0:00:28]} b5 {[%emt 0:00:47]} 6. Qc2 {[%emt 0:06:08]} c6 {[%emt 0:07:43]} 7. Bg5 {[%emt 0:03:52]} h6 {[%emt 0:12:31]} 8. Bxf6 {[%emt 0:13:21]} Qxf6 {[%emt 0:00:14]} 9. a4 {[%emt 0:04:48]} Bb4 {[%emt 0:18:16]} 10. axb5 {[%emt 0:08:22]} cxb5 {[%emt 0:00:18]} 11. Nf3 {[%emt 0:08:48]} Nd7 {[%emt 0:03:54]} 12. Be2 {[%emt 0:03:21]} a6 {[%emt 0:02:51]} 13. O-O {[%emt 0:00:49]} Rb8 {[%emt 0:00:21]} 14. Nd1 {[%emt 0:10:49]} Nc5 {[%emt 0:02:32]} 15. Ne3 {[%emt 0:01:10]} Nb3 {[%emt 0:00:47]} 16. Rab1 {[%emt 0:06:39]} O-O {[%emt 0:01:33]} 17. h3 {[%emt 0:02:12]} Nd4 {[%emt 0:16:12]} 18. Qd1 {[%emt 0:00:35]} Nxe2+ {[%emt 0:02:32]} 19. Qxe2 {[%emt 0:00:05]} Qf4 {[%emt 0:00:54]} 20. Nc2 {[%emt 0:04:46]} Bc5 {[%emt 0:00:11]} 21. Kh1 {[%emt 0:02:10]} a5 {[%emt 0:02:43]} 22. Rbd1 {[%emt 0:00:58]} a4 {[%emt 0:01:52]} 23. d6 {[%emt 0:01:02]} Bb7 {[%emt 0:02:54]} 24. Rfe1 {[%emt 0:02:27]} Rfd8 {[%emt 0:05:34]} 25. g3 {[%emt 0:02:10]} Qf6 {[%emt 0:00:15]} 26. d7 {[%emt 0:00:11]} Qe6 {[%emt 0:01:35]} 27. Kg2 {[%emt 0:00:14]} Bc6 {[%emt 0:00:12]} 28. Ne3 {[%emt 0:01:53]} Bxe4 {[%emt 0:01:17]} 29. Ng4 {[%emt 0:00:24]} f5 {[%emt 0:00:40]} 0-1

[Event "XIV American Continental-ch 2019"]
[Site "Sao Paulo"]
[Date "2019.07.11"]
[Round "9.1"]
[White "Fier, Alexandr"]
[Black "Iturrizaga Bonelli, Eduardo"]
[Result "0-1"]
[ECO "E25"]
[WhiteElo "2547"]
[BlackElo "2625"]
[Annotator "RC"]
[PlyCount "72"]
[EventDate "2019.07.05"]
[EventType "swiss"]
[EventCountry "BRA"]
[TimeControl "40/5400+30:1800+30"]

1. d4 {[%emt 0:00:00]} Nf6 {[%emt 0:00:00]} 2. c4 {[%emt 0:00:00]} e6 {[%emt 0:00:00]} 3. Nc3 {[%emt 0:00:00]} Bb4 {[%emt 0:00:00]} 4. f3 {[%emt 0:00:00]} d5 {[%emt 0:04:16]} 5. a3 {[%emt 0:00:00]} Bxc3+ {[%emt 0:00:47]} 6. bxc3 {[%emt 0:00:00]} c5 {[%emt 0:02:52]} 7. cxd5 {[%emt 0:00:00]} exd5 {[%emt 0:00:43]} 8. e3 {[%emt 0:00:03]} c4 {[%emt 0:00:14]} 9. Ne2 {[%emt 0:00:05]} Nc6 {[%emt 0:01:00]} 10. g4 {[%emt 0:01:41]} Na5 {[%emt 0:01:50]} 11. Bg2 {[%emt 0:00:32]} Nd7 {[%emt 0:07:45]} 12. O-O {[%emt 0:02:05]} Nb6 {[%emt 0:02:19]} 13. Nf4 {[%emt 0:05:03]} O-O {[%emt 0:02:04]} 14. e4 {[%emt 0:06:34]} Nb3 {[%emt 0:05:12]} 15. Rb1 {[%emt 0:01:40]} Bd7 {[%emt 0:03:01]} 16. e5 f6 {[%emt 0:13:04]} 17. Re1 {[%emt 0:14:43]} Re8 {[%emt 0:07:13]} 18. Nh5 {[%emt 0:03:27]} Na4 {[%emt 0:02:36]} 19. Qc2 {[%emt 0:13:09]} fxe5 {[%emt 0:14:10]} 20. dxe5 {[%emt 0:02:54]} Qb6+ {[%emt 0:00:40]} 21. Kh1 {[%emt 0:09:08]} Qg6 {[%emt 0:00:09]} 22. Rb2 {[%emt 0:00:13]} Nxb2 {[%emt 0:04:56]} 23. Qxb2 Rad8 {[%emt 0:02:19]} 24. Bf4 {[%emt 0:04:25]} Bc6 {[%emt 0:01:55]} 25. Rd1 {[%emt 0:04:33]} Nc5 {[%emt 0:01:53]} 26. Qe2 {[%emt 0:01:24]} Nd3 {[%emt 0:01:23]} 27. Qe3 {[%emt 0:00:04]} Rd7 {[%emt 0:03:18]} 28. Bg3 {[%emt 0:01:16]} Rde7 {[%emt 0:00:52]} 29. Qxa7 {[%emt 0:02:52]} Nxe5 {[%emt 0:00:12]} 30. Qd4 {[%emt 0:01:35]} Nd3 {[%emt 0:00:12]} 31. h3 {[%emt 0:00:11]} Qe6 {[%emt 0:01:25]} 32. Nf4 {[%emt 0:05:23]} Nxf4 {[%emt 0:00:31]} 33. Bxf4 {[%emt 0:00:12]} Qf6 {[%emt 0:00:12]} 34. Kh2 {[%emt 0:01:59]} Re2 {[%emt 0:01:10]} 35. Qxf6 {[%emt 0:04:02]} gxf6 {[%emt 0:00:05]} 36. Rc1 {[%emt 0:00:10]} d4 {[%emt 0:00:23]} 0-1

[Event "XIV American Continental-ch 2019"]
[Site "Sao Paulo"]
[Date "2019.07.11"]
[Round "9.3"]
[White "Gonzalez Vidal, Yuri"]
[Black "Mekhitarian, Krikor Sevag"]
[Result "1/2-1/2"]
[ECO "C65"]
[WhiteElo "2547"]
[BlackElo "2545"]
[Annotator "RC"]
[PlyCount "43"]
[EventDate "2019.07.05"]
[EventType "swiss"]
[EventCountry "BRA"]
[SourceTitle "playchess.com"]
[Source "ChessBase"]
[SourceQuality "1"]
[TimeControl "40/5400+30:1800+30"]

1. e4 {[%emt 0:00:00]} e5 {[%emt 0:00:00]} 2. Nf3 {[%emt 0:00:00]} Nc6 {[%emt 0:00:00]} 3. Bb5 {[%emt 0:00:04]} Nf6 {[%emt 0:00:00]} 4. d3 {[%emt 0:00:45]} Bc5 {[%emt 0:00:00]} 5. Bxc6 {[%emt 0:02:22]} dxc6 {[%emt 0:00:00]} 6. Nbd2 {[%emt 0:02:10]} O-O {[%emt 0:00:18]} 7. Qe2 {[%emt 0:00:44]} Re8 {[%emt 0:01:12]} 8. Nc4 {[%emt 0:00:59]} Nd7 {[%emt 0:00:02]} 9. Rg1 {[%emt 0:00:33]} Bb4+ {[%emt 0:00:15]} 10. Bd2 {[%emt 0:02:20]} Bxd2+ {[%emt 0:00:09]} 11. Qxd2 {[%emt 0:01:56]} Qf6 {[%emt 0:00:02]} 12. O-O-O {[%emt 0:11:23]} a5 {[%emt 0:00:42]} 13. Kb1 {[%emt 0:01:25]} b5 {[%emt 0:04:44]} 14. Ne3 {[%emt 0:03:01]} Nc5 {[%emt 0:01:46]} 15. h3 {[%emt 0:08:15]} a4 16. Qc3 Na6 {[%emt 0:50:10]} 17. d4 {[%emt 0:21:54]} exd4 {[%emt 0:00:28]} 18. Nxd4 {[%emt 0:00:34]} b4 {[%emt 0:05:50]} 19. Qc4 {[%emt 0:11:15]} Rxe4 {[%emt 0:01:56]} 20. Qxc6 {[%emt 0:01:01]} Qxc6 {[%emt 0:01:20]} 21. Nxc6 {[%emt 0:00:04]} Be6 {[%emt 0:02:54]} 22. Rd4 {[%emt 0:08:19]} 1/2-1/2

[Event "XIV American Continental-ch 2019"]
[Site "Sao Paulo"]
[Date "2019.07.11"]
[Round "9.7"]
[White "Lima, Darcy"]
[Black "Perdomo, Leandro"]
[Result "1/2-1/2"]
[ECO "C58"]
[WhiteElo "2543"]
[BlackElo "2468"]
[Annotator "RC"]
[PlyCount "28"]
[EventDate "2019.07.05"]
[EventType "swiss"]
[EventCountry "BRA"]
[SourceTitle "playchess.com"]
[Source "ChessBase"]
[SourceQuality "1"]
[TimeControl "40/5400+30:1800+30"]

1. e4 {[%emt 0:00:00]} e5 {[%emt 0:00:00]} 2. Nf3 {[%emt 0:00:00]} Nc6 {[%emt 0:00:00]} 3. Bc4 {[%emt 0:01:11]} Nf6 {[%emt 0:00:00]} 4. Ng5 {[%emt 0:01:04]} d5 {[%emt 0:00:00]} 5. exd5 {[%emt 0:00:06]} Na5 {[%emt 0:00:00]} 6. Bb5+ {[%emt 0:00:36]} Bd7 {[%emt 0:03:31]} 7. Qe2 {[%emt 0:00:59]} Be7 {[%emt 0:00:07]} 8. b4 {[%emt 0:00:28]} Bxb4 {[%emt 0:04:41]} 9. Qxe5+ {[%emt 0:01:15]} Qe7 {[%emt 0:15:18]} 10. Qxe7+ {[%emt 0:00:55]} Bxe7 {[%emt 0:00:47]} 11. Bxd7+ {[%emt 0:00:27]} Nxd7 {[%emt 0:00:07]} 12. Ne4 {[%emt 0:00:20]} Nf6 {[%emt 0:09:55]} 13. Nbc3 {[%emt 0:07:20]} Nxe4 {[%emt 0:05:11]} 14. Nxe4 {[%emt 0:00:10]} O-O-O {[%emt 0:01:34]} 1/2-1/2

[Event "XIV American Continental-ch 2019"]
[Site "Sao Paulo"]
[Date "2019.07.11"]
[Round "9.9"]
[White "Duran Vega, Sergio"]
[Black "Barbosa, Evandro Amorim"]
[Result "1-0"]
[ECO "A48"]
[WhiteElo "2364"]
[BlackElo "2506"]
[Annotator "RC"]
[PlyCount "79"]
[EventDate "2019.07.05"]
[EventType "swiss"]
[EventCountry "BRA"]
[SourceTitle "playchess.com"]
[Source "ChessBase"]
[SourceQuality "1"]
[TimeControl "40/5400+30:1800+30"]

1. d4 {[%emt 0:07:40]} Nf6 {[%emt 0:00:00]} 2. Nf3 {[%emt 0:00:11]} g6 {[%emt 0:00:24]} 3. Nbd2 {[%emt 0:00:39]} d5 {[%emt 0:02:19]} 4. e3 {[%emt 0:00:25]} Bg7 {[%emt 0:01:29]} 5. b4 {[%emt 0:00:16]} a5 {[%emt 0:00:25]} 6. b5 {[%emt 0:00:06]} c5 {[%emt 0:02:33]} 7. bxc6 {[%emt 0:00:07]} Nxc6 {[%emt 0:00:28]} 8. Be2 {[%emt 0:00:09]} O-O {[%emt 0:00:32]} 9. O-O {[%emt 0:03:35]} Bf5 {[%emt 0:04:07]} 10. c4 {[%emt 0:00:02]} a4 {[%emt 0:06:19]} 11. Ba3 Re8 {[%emt 0:29:25]} 12. Rc1 {[%emt 0:04:50]} e6 {[%emt 0:03:22]} 13. Ne5 {[%emt 0:09:12]} h5 {[%emt 0:12:49]} 14. Nxc6 {[%emt 0:07:50]} bxc6 {[%emt 0:00:08]} 15. cxd5 {[%emt 0:00:58]} exd5 {[%emt 0:01:55]} 16. Rxc6 {[%emt 0:00:53]} Qb8 {[%emt 0:00:25]} 17. Qc1 {[%emt 0:12:43]} Ng4 {[%emt 0:00:09]} 18. Bd6 {[%emt 0:02:29]} Qb7 {[%emt 0:00:15]} 19. Bf3 {[%emt 0:09:54]} Be6 {[%emt 0:02:54]} 20. Qc2 {[%emt 0:05:48]} Bh6 {[%emt 0:01:06]} 21. Rb1 {[%emt 0:10:13]} Qd7 {[%emt 0:02:32]} 22. Bxg4 {[%emt 0:01:43]} Bxg4 {[%emt 0:01:34]} 23. Rc1 {[%emt 0:00:26]} h4 {[%emt 0:01:36]} 24. h3 {[%emt 0:01:21]} Bf5 {[%emt 0:04:54]} 25. Qc3 {[%emt 0:00:02]} Rad8 {[%emt 0:09:08]} 26. Be5 {[%emt 0:02:42]} Be6 {[%emt 0:04:08]} 27. Qb4 {[%emt 0:02:30]} Bxh3 {[%emt 0:03:13]} 28. gxh3 {[%emt 0:05:35]} Qxh3 {[%emt 0:00:02]} 29. Qb5 {[%emt 0:04:22]} Bxe3 {[%emt 0:01:04]} 30. fxe3 {[%emt 0:00:15]} Qxe3+ {[%emt 0:00:06]} 31. Kf1 {[%emt 0:00:07]} Qxd2 {[%emt 0:00:46]} 32. Qe2 {[%emt 0:00:12]} Qg5 {[%emt 0:00:28]} 33. Qf3 {[%emt 0:00:46]} Re6 {[%emt 0:00:58]} 34. Bf6 {[%emt 0:01:46]} Qd2 {[%emt 0:02:17]} 35. Bxd8 {[%emt 0:00:13]} Re3 {[%emt 0:00:07]} 36. Rxg6+ {[%emt 0:02:50]} fxg6 {[%emt 0:00:21]} 37. Qxd5+ {[%emt 0:00:20]} Kf8 {[%emt 0:01:41]} 38. Qd6+ {[%emt 0:00:31]} Ke8 {[%emt 0:01:51]} 39. Qxg6+ {[%emt 0:00:06]} Kf8 {[%emt 0:00:13]} 40. Be7+ {[%emt 0:00:32]} 1-0

[Event "XIV American Continental-ch 2019"]
[Site "Sao Paulo"]
[Date "2019.07.11"]
[Round "9.20"]
[White "Martins, Carlos"]
[Black "Molina, Roberto Junio Brito"]
[Result "0-1"]
[ECO "C02"]
[WhiteElo "2238"]
[BlackElo "2464"]
[Annotator "RC"]
[PlyCount "74"]
[EventDate "2019.07.05"]
[EventType "swiss"]
[EventCountry "BRA"]
[SourceTitle "playchess.com"]
[Source "ChessBase"]
[SourceQuality "1"]
[TimeControl "40/5400+30:1800+30"]

1. e4 {[%emt 0:00:27]} e6 {[%emt 0:00:00]} 2. d4 {[%emt 0:07:55]} d5 {[%emt 0:00:34]} 3. e5 {[%emt 0:01:26]} c5 {[%emt 0:00:04]} 4. c3 {[%emt 0:00:03]} Nc6 {[%emt 0:00:02]} 5. Nf3 {[%emt 0:00:13]} Qb6 {[%emt 0:00:03]} 6. Bd3 {[%emt 0:03:44]} cxd4 {[%emt 0:00:07]} 7. cxd4 {[%emt 0:00:04]} Bd7 {[%emt 0:00:07]} 8. O-O {[%emt 0:00:09]} Nxd4 {[%emt 0:00:07]} 9. Nxd4 {[%emt 0:02:07]} Qxd4 {[%emt 0:07:26]} 10. Nc3 {[%emt 0:00:07]} a6 {[%emt 0:00:03]} 11. Qe2 {[%emt 0:00:07]} Ne7 {[%emt 0:01:10]} 12. Kh1 {[%emt 0:00:06]} Nc6 {[%emt 0:00:09]} 13. f4 {[%emt 0:00:07]} Nb4 {[%emt 0:03:55]} 14. Rd1 {[%emt 0:00:05]} Nxd3 {[%emt 0:00:21]} 15. Rxd3 {[%emt 0:00:11]} Qb6 {[%emt 0:00:34]} 16. f5 d4 {[%emt 0:12:51]} 17. fxe6 {[%emt 0:23:04]} Bxe6 {[%emt 0:00:16]} 18. Ne4 {[%emt 0:01:11]} O-O-O {[%emt 0:03:33]} 19. Bf4 {[%emt 0:04:47]} Kb8 {[%emt 0:00:40]} 20. b3 {[%emt 0:05:23]} Ka8 {[%emt 0:02:07]} 21. Rad1 {[%emt 0:11:18]} Bf5 {[%emt 0:03:01]} 22. Nd6 {[%emt 0:09:01]} Bxd6 {[%emt 0:07:06]} 23. exd6 {[%emt 0:00:22]} Rhe8 {[%emt 0:00:13]} 24. Qd2 {[%emt 0:00:18]} Bxd3 {[%emt 0:00:13]} 25. Qxd3 {[%emt 0:00:02]} h6 {[%emt 0:02:29]} 26. h3 {[%emt 0:00:24]} Rxd6 {[%emt 0:00:27]} 27. Qc4 {[%emt 0:00:52]} Rd7 {[%emt 0:00:37]} 28. Bg3 {[%emt 0:03:32]} Qb5 {[%emt 0:00:23]} 29. Qc1 {[%emt 0:00:49]} g5 {[%emt 0:01:28]} 30. Bf2 {[%emt 0:02:02]} d3 {[%emt 0:02:20]} 31. Qc3 {[%emt 0:02:43]} Qc6 {[%emt 0:04:41]} 32. Rxd3 {[%emt 0:02:05]} Qxc3 {[%emt 0:01:09]} 33. Rxc3 {[%emt 0:00:02]} b5 {[%emt 0:00:19]} 34. a4 {[%emt 0:00:32]} Re2 {[%emt 0:00:39]} 35. Rf3 {[%emt 0:15:25]} Rd1+ {[%emt 0:02:52]} 36. Kh2 {[%emt 0:00:17]} Rf1 {[%emt 0:00:56]} 37. Kg3 {[%emt 0:00:18]} h5 {[%emt 0:00:31]} 0-1

[Event "XIV American Continental-ch 2019"]
[Site "Sao Paulo"]
[Date "2019.07.12"]
[Round "10.1"]
[White "Delgado Ramirez, Neuris"]
[Black "Iturrizaga Bonelli, Eduardo"]
[Result "1/2-1/2"]
[ECO "B82"]
[WhiteElo "2605"]
[BlackElo "2625"]
[Annotator "ChessBase"]
[PlyCount "24"]
[EventDate "2019.07.05"]
[EventType "swiss"]
[EventCountry "BRA"]
[SourceTitle "playchess.com"]
[Source "ChessBase"]
[SourceQuality "1"]
[TimeControl "40/5400+30:1800+30"]

1. e4 {[%emt 0:05:05]} c5 {[%emt 0:00:00]} 2. Nf3 {[%emt 0:00:09]} e6 3. d4 {[%emt 0:00:20]} cxd4 {[%emt 0:00:00]} 4. Nxd4 {[%emt 0:00:03]} Nf6 {[%emt 0:00:00]} 5. Nc3 {[%emt 0:00:45]} d6 {[%emt 0:00:00]} 6. f4 {[%emt 0:00:55]} a6 {[%emt 0:02:11]} 7. Bd3 {[%emt 0:00:16]} g6 {[%emt 0:04:59]} 8. Qe2 {[%emt 0:07:25]} Bg7 {[%emt 0:00:26]} 9. Nf3 {[%emt 0:00:11]} Nc6 {[%emt 0:01:53]} 10. e5 {[%emt 0:05:18]} dxe5 {[%emt 0:00:51]} 11. fxe5 {[%emt 0:00:02]} Nd7 {[%emt 0:00:47]} 12. Bf4 {[%emt 0:01:08]} Qa5 {[%emt 0:01:02]} 1/2-1/2

[Event "XIV American Continental-ch 2019"]
[Site "Sao Paulo"]
[Date "2019.07.12"]
[Round "10.2"]
[White "Gonzalez Vidal, Yuri"]
[Black "Pichot, Alan"]
[Result "1-0"]
[ECO "B30"]
[WhiteElo "2547"]
[BlackElo "2579"]
[Annotator "ChessBase"]
[PlyCount "57"]
[EventDate "2019.07.05"]
[EventType "swiss"]
[EventCountry "BRA"]
[SourceTitle "playchess.com"]
[Source "ChessBase"]
[SourceQuality "1"]
[TimeControl "40/5400+30:1800+30"]

1. e4 {[%emt 0:00:00]} c5 {[%emt 0:00:00]} 2. Nf3 {[%emt 0:00:00]} Nc6 {[%emt 0:00:00]} 3. Bb5 {[%emt 0:00:03]} e6 {[%emt 0:00:00]} 4. O-O {[%emt 0:00:33]} Nge7 {[%emt 0:00:00]} 5. d4 {[%emt 0:00:25]} cxd4 {[%emt 0:00:01]} 6. Nxd4 {[%emt 0:00:08]} Qb6 {[%emt 0:03:23]} 7. Nxc6 {[%emt 0:00:40]} bxc6 {[%emt 0:04:24]} 8. Bd3 {[%emt 0:06:54]} Ng6 {[%emt 0:00:05]} 9. c4 {[%emt 0:00:10]} Bc5 {[%emt 0:02:21]} 10. Nc3 {[%emt 0:00:25]} Qb8 {[%emt 0:06:16]} 11. Na4 {[%emt 0:05:01]} Bd4 {[%emt 0:00:55]} 12. c5 {[%emt 0:01:45]} d6 {[%emt 0:01:31]} 13. Kh1 {[%emt 0:14:11]} e5 {[%emt 0:04:14]} 14. Be3 {[%emt 0:09:58]} dxc5 {[%emt 0:14:22]} 15. Nxc5 {[%emt 0:00:36]} Qxb2 {[%emt 0:05:00]} 16. Qa4 {[%emt 0:00:53]} Qb6 {[%emt 0:03:55]} 17. Bxd4 {[%emt 0:03:38]} exd4 {[%emt 0:00:05]} 18. Qxd4 {[%emt 0:01:04]} O-O {[%emt 0:00:05]} 19. f4 {[%emt 0:00:39]} Rd8 {[%emt 0:02:33]} 20. Qc3 {[%emt 0:01:58]} Rb8 {[%emt 0:00:14]} 21. f5 {[%emt 0:02:49]} Nf8 {[%emt 0:00:15]} 22. Rab1 {[%emt 0:07:41]} Qc7 {[%emt 0:00:05]} 23. Rxb8 {[%emt 0:06:15]} Qxb8 {[%emt 0:00:07]} 24. Bc4 {[%emt 0:05:51]} Qd6 {[%emt 0:01:08]} 25. e5 {[%emt 0:01:46]} Qe7 {[%emt 0:04:10]} 26. h3 {[%emt 0:11:21]} Re8 {[%emt 0:12:53]} 27. e6 {[%emt 0:05:11]} f6 {[%emt 0:01:05]} 28. Qd4 {[%emt 0:00:51]} h6 {[%emt 0:01:02]} 29. Rd1 {[%emt 0:00:52]} 1-0

[Event "XIV American Continental-ch 2019"]
[Site "Sao Paulo"]
[Date "2019.07.12"]
[Round "10.3"]
[White "Garcia Pantoja, Roberto"]
[Black "Perez Ponsa, Federico"]
[Result "1/2-1/2"]
[ECO "B90"]
[WhiteElo "2529"]
[BlackElo "2560"]
[Annotator "ChessBase"]
[PlyCount "30"]
[EventDate "2019.07.05"]
[EventType "swiss"]
[EventCountry "BRA"]
[SourceTitle "playchess.com"]
[Source "ChessBase"]
[SourceQuality "1"]
[TimeControl "40/5400+30:1800+30"]

1. e4 {[%emt 0:00:00]} c5 {[%emt 0:00:00]} 2. Nf3 {[%emt 0:00:00]} d6 {[%emt 0:00:00]} 3. d4 {[%emt 0:00:33]} cxd4 {[%emt 0:00:00]} 4. Nxd4 {[%emt 0:00:02]} Nf6 {[%emt 0:00:00]} 5. Nc3 {[%emt 0:00:03]} a6 {[%emt 0:00:01]} 6. f3 {[%emt 0:01:01]} e5 {[%emt 0:00:13]} 7. Nb3 {[%emt 0:00:04]} Be6 {[%emt 0:00:04]} 8. Be3 {[%emt 0:00:08]} h5 {[%emt 0:00:42]} 9. Qd2 {[%emt 0:01:26]} Nbd7 {[%emt 0:00:13]} 10. O-O-O {[%emt 0:00:24]} Be7 {[%emt 0:01:44]} 11. h4 {[%emt 0:03:55]} b5 {[%emt 0:05:43]} 12. Bg5 {[%emt 0:04:06]} Rc8 {[%emt 0:09:45]} 13. Kb1 {[%emt 0:00:09]} O-O {[%emt 0:02:39]} 14. a3 {[%emt 0:00:02]} Re8 {[%emt 0:03:30]} 15. Be2 {[%emt 0:08:54]} Qb6 {[%emt 0:05:25]} 1/2-1/2

[Event "XIV American Continental-ch 2019"]
[Site "Sao Paulo"]
[Date "2019.07.12"]
[Round "10.5"]
[White "Vazquez, Guillermo"]
[Black "Leitao, Rafael"]
[Result "1-0"]
[ECO "B52"]
[WhiteElo "2483"]
[BlackElo "2616"]
[Annotator "ChessBase"]
[PlyCount "55"]
[EventDate "2019.07.05"]
[EventType "swiss"]
[EventCountry "BRA"]
[SourceTitle "playchess.com"]
[Source "ChessBase"]
[SourceQuality "1"]
[TimeControl "40/5400+30:1800+30"]

1. e4 {[%emt 0:00:00]} c5 {[%emt 0:02:58]} 2. Nf3 {[%emt 0:00:00]} d6 {[%emt 0:00:08]} 3. Bb5+ {[%emt 0:00:36]} Bd7 {[%emt 0:02:09]} 4. c4 {[%emt 0:01:13]} Bxb5 {[%emt 0:08:37]} 5. cxb5 {[%emt 0:00:04]} Nf6 {[%emt 0:00:35]} 6. Nc3 {[%emt 0:01:51]} g6 {[%emt 0:03:30]} 7. O-O {[%emt 0:04:28]} Bg7 {[%emt 0:01:08]} 8. d4 {[%emt 0:00:42]} cxd4 {[%emt 0:00:40]} 9. Nxd4 {[%emt 0:00:20]} O-O {[%emt 0:00:22]} 10. Qe2 {[%emt 0:03:53]} Nbd7 {[%emt 0:01:42]} 11. h3 {[%emt 0:07:03]} d5 {[%emt 0:19:46]} 12. exd5 {[%emt 0:05:26]} Nb6 {[%emt 0:01:03]} 13. Rd1 {[%emt 0:01:40]} Qd6 {[%emt 0:05:49]} 14. Qf3 {[%emt 0:17:03]} Rfd8 {[%emt 0:12:39]} 15. Bf4 {[%emt 0:02:54]} Qd7 {[%emt 0:03:24]} 16. d6 {[%emt 0:02:48]} e6 {[%emt 0:00:06]} 17. Nc6 {[%emt 0:10:07]} bxc6 {[%emt 0:05:13]} 18. bxc6 {[%emt 0:00:03]} Qc8 {[%emt 0:03:10]} 19. Rac1 {[%emt 0:03:38]} Nfd5 {[%emt 0:08:20]} 20. Nxd5 {[%emt 0:06:49]} exd5 {[%emt 0:00:22]} 21. Rxd5 {[%emt 0:01:39]} Bxb2 {[%emt 0:04:58]} 22. d7 {[%emt 0:01:25]} Qa6 {[%emt 0:00:17]} 23. Rc2 {[%emt 0:02:14]} Bf6 {[%emt 0:08:46]} 24. c7 {[%emt 0:01:20]} Qa4 {[%emt 0:01:53]} 25. Rdd2 {[%emt 0:06:24]} Nxd7 {[%emt 0:00:45]} 26. cxd8=Q+ {[%emt 0:00:11]} Rxd8 {[%emt 0:00:03]} 27. Be3 {[%emt 0:02:12]} Rb8 {[%emt 0:01:21]} 28. Qc6 {[%emt 0:01:43]} 1-0